bitfinex/quotes_BTCUSD_20230907
["timestamp","ask_amount","ask_price","bid_price","bid_amount"]
[1694057490537,3.06469969,25814.0,25813.0,0.064]
[1694057491167,2.97171717,25814.0,25813.0,0.064]
[1694057493977,3.18519969,25814.0,25813.0,0.004]
[1694057495163,3.09221717,25814.0,25813.0,0.004]
[1694057496364,3.47886244,25814.0,25813.0,0.004]
[1694057496592,3.35836244,25814.0,25813.0,0.004]
[1694057497736,3.35836244,25814.0,25813.0,0.01123756]
[1694057497972,3.47886244,25814.0,25813.0,0.004]
[1694057498487,3.36250993,25814.0,25813.0,0.004]
[1694057498695,3.36250993,25814.0,25813.0,0.01123756]
[1694057499128,3.49845023,25814.0,25813.0,0.01123756]
[1694057499676,3.26952741,25814.0,25813.0,0.01123756]
[1694057499917,3.74643433,25814.0,25813.0,0.01123756]
[1694057500129,3.60691099,25814.0,25813.0,0.004]
[1694057500777,3.58691099,25814.0,25813.0,0.002]
[1694057501191,3.58691099,25814.0,25813.0,0.00723756]
[1694057501192,3.47892847,25814.0,25813.0,0.00723756]
[1694057501436,3.50292847,25814.0,25813.0,0.002]
[1694057502067,3.52692847,25814.0,25813.0,0.004]
[1694057502916,3.52692847,25814.0,25813.0,0.002]
[1694057502917,3.50292847,25814.0,25813.0,0.002]
[1694057503146,3.52692847,25814.0,25813.0,0.004]
[1694057504023,3.14686533,25814.0,25813.0,0.004]
[1694057504244,0.048,25814.0,25813.0,0.03118452]
[1694057505781,0.047,25814.0,25813.0,0.02718452]
[1694057505989,0.023,25814.0,25813.0,0.02718452]
[1694057506195,0.071,25814.0,25813.0,0.03118452]
[1694057508985,0.845773,25814.0,25813.0,0.03118452]
[1694057509414,1.620546,25814.0,25813.0,0.03118452]
[1694057510519,0.845773,25814.0,25813.0,0.03118452]
[1694057511403,1.83473804,25814.0,25813.0,0.03118452]
[1694057512091,1.89548113,25814.0,25813.0,0.03118452]
[1694057512315,1.12070813,25814.0,25813.0,0.03118452]
[1694057513202,0.32293513,25814.0,25813.0,0.03118452]
[1694057515825,0.31793513,25814.0,25813.0,0.03118452]
[1694057518476,1.09270813,25814.0,25813.0,0.03118452]
[1694057518737,1.86748113,25814.0,25813.0,0.03118452]
[1694057518995,2.13370394,25814.0,25813.0,0.03118452]
[1694057519479,1.86748113,25814.0,25813.0,0.03118452]
[1694057522662,1.09270813,25814.0,25813.0,0.03118452]
[1694057522863,0.31793513,25814.0,25813.0,0.03118452]
[1694057526646,1.09270813,25814.0,25813.0,0.03118452]
[1694057531620,1.09270813,25814.0,25813.0,0.07118452]
[1694057532108,1.18559403,25814.0,25813.0,0.07118452]
[1694057534349,1.18559403,25814.0,25813.0,0.09118452]
[1694057535111,1.32492288,25814.0,25813.0,0.09118452]
[1694057536235,1.23203698,25814.0,25813.0,0.09118452]
[1694057540232,2.05325293,25814.0,25813.0,0.09118452]
[1694057540438,2.28546769,25814.0,25813.0,0.09118452]
[1694057541296,2.05325293,25814.0,25813.0,0.09118452]
[1694057548307,2.28546769,25814.0,25813.0,0.09118452]
[1694057550376,2.09969589,25814.0,25813.0,0.09118452]
[1694057551226,2.09969589,25814.0,25813.0,0.084]
[1694057557095,2.28584972,25814.0,25813.0,0.084]
[1694057557955,2.09969589,25814.0,25813.0,0.084]
[1694057558497,2.2858514,25814.0,25813.0,0.084]
[1694057559699,2.09969589,25814.0,25813.0,0.084]
[1694057562147,2.28585287,25814.0,25813.0,0.084]
[1694057563005,2.07166083,25814.0,25813.0,0.084]
[1694057563847,1.88550385,25814.0,25813.0,0.084]
[1694057564218,2.07166004,25814.0,25813.0,0.084]
[1694057565073,1.88550385,25814.0,25813.0,0.084]
[1694057565530,2.07166006,25814.0,25813.0,0.084]
[1694057567327,0.52211406,25814.0,25813.0,0.084]
[1694057567558,0.13607078,25814.0,25813.0,2.528909]
[1694057567998,0.043,25814.0,25813.0,2.528909]
[1694057568214,0.019,25814.0,25813.0,2.526909]
[1694057569081,0.09307078,25815.0,25814.0,0.08]
[1694057569295,0.09307078,25815.0,25814.0,2.524819]
[1694057570411,0.10107078,25815.0,25814.0,2.525819]
[1694057570628,0.10107078,25815.0,25814.0,2.526819]
[1694057570629,0.017,25815.0,25814.0,2.526819]
[1694057571282,0.11007078,25815.0,25814.0,2.526819]
[1694057571751,0.017,25815.0,25814.0,2.526819]
[1694057576527,0.017,25815.0,25814.0,2.95346427]
[1694057576739,0.017,25815.0,25814.0,2.99346427]
[1694057577356,0.008,25815.0,25814.0,2.99246427]
[1694057577565,0.008,25815.0,25814.0,3.01246427]
[1694057578738,0.009,25815.0,25814.0,3.01246427]
[1694057578939,0.009,25815.0,25814.0,3.03146427]
[1694057578940,0.011,25815.0,25814.0,3.03146427]
[1694057579135,0.009,25815.0,25814.0,3.01246427]
[1694057579340,0.09307078,25818.0,25817.0,0.08]
[1694057579537,0.09307078,25818.0,25817.0,0.975183]
[1694057580507,0.09307078,25818.0,25817.0,1.750866]
[1694057580748,0.09307078,25818.0,25817.0,0.976183]
[1694057581177,0.09307078,25818.0,25817.0,1.750866]
[1694057581784,0.09307078,25818.0,25817.0,0.976183]
[1694057581988,0.13961046,25819.0,25817.0,0.976183]
[1694057581989,0.23268124,25819.0,25817.0,0.976183]
[1694057582822,0.23268124,25819.0,25818.0,0.08]
[1694057583021,0.24068124,25819.0,25818.0,0.08]
[1694057583223,0.24968124,25819.0,25818.0,0.08]
[1694057583817,0.24068124,25819.0,25818.0,0.08]
[1694057584229,0.10107078,25819.0,25818.0,0.08]
[1694057584643,0.10107078,25819.0,25818.0,0.08046479]
[1694057585303,0.11007078,25819.0,25818.0,0.85611779]
[1694057585507,0.10207078,25819.0,25818.0,0.85611779]
[1694057585716,0.11007078,25819.0,25818.0,0.85711779]
[1694057586401,0.11007078,25819.0,25818.0,1.63177079]
[1694057586613,0.017,25819.0,25818.0,2.40642379]
[1694057586830,0.017,25819.0,25818.0,1.63177079]
[1694057589640,0.017,25819.0,25818.0,1.6318946]
[1694057593248,0.017,25819.0,25818.0,1.7523946]
[1694057594105,0.017,25819.0,25818.0,0.2030886]
[1694057594324,0.017,25819.0,25818.0,1.7523946]
[1694057594541,0.017,25819.0,25818.0,0.9777416]
[1694057597585,0.017,25819.0,25818.0,0.97791963]
[1694057602825,0.017,25819.0,25818.0,1.75257263]
[1694057606524,0.017,25819.0,25818.0,1.75277847]
[1694057609133,0.11007078,25819.0,25818.0,2.52743147]
[1694057609528,0.017,25819.0,25818.0,2.52743147]
[1694057609731,0.11007078,25819.0,25818.0,2.52743147]
[1694057610166,0.017,25819.0,25818.0,2.52743147]
[1694057610804,0.11007078,25819.0,25818.0,2.52743147]
[1694057611260,0.017,25819.0,25818.0,2.52743147]
[1694057611463,0.017,25819.0,25818.0,2.91407674]
[1694057612035,0.09307078,25820.0,25819.0,0.08]
[1694057612241,0.09307078,25820.0,25819.0,2.524369]
[1694057612460,0.23268124,25821.0,25819.0,2.524369]
[1694057612671,0.23268124,25821.0,25820.0,1.749686]
[1694057612672,0.13961046,25821.0,25820.0,1.749686]
[1694057612869,0.13961046,25821.0,25820.0,2.524279]
[1694057613856,0.32576667,25821.0,25820.0,2.524279]
[1694057614243,0.13961046,25821.0,25820.0,2.524279]
[1694057614652,0.32576667,25821.0,25820.0,2.524279]
[1694057614854,0.32676667,25821.0,25820.0,2.534279]
[1694057615063,0.32776667,25821.0,25820.0,2.543279]
[1694057615265,0.14161046,25821.0,25820.0,2.543279]
[1694057615678,0.32776667,25821.0,25820.0,2.543279]
[1694057615891,0.32776667,25821.0,25820.0,2.54212312]
[1694057616561,0.32776667,25821.0,25820.0,2.54327181]
[1694057617555,0.18815621,25821.0,25820.0,2.54327181]
[1694057621706,0.42037097,25821.0,25820.0,2.54327181]
[1694057623338,0.18815621,25821.0,25820.0,2.54327181]
[1694057624372,0.18815621,25821.0,25820.0,2.54210802]
[1694057625199,0.3276493,25821.0,25820.0,2.54210802]
[1694057632301,0.14149309,25821.0,25820.0,2.54210802]
[1694057635042,0.14149309,25821.0,25820.0,2.78360802]
[1694057636647,0.23446687,25821.0,25820.0,2.78360802]
[1694057636871,0.14149309,25821.0,25820.0,2.78360802]
[1694057637313,0.23446502,25821.0,25820.0,2.78360802]
[1694057637552,0.14149309,25821.0,25820.0,2.78360802]
[1694057638311,0.23446394,25821.0,25820.0,3.17025329]
[1694057638519,0.23446394,25821.0,25820.0,3.19025329]
[1694057639528,0.09497085,25821.0,25820.0,3.19025329]
[1694057639935,0.002,25821.0,25820.0,3.19025329]
[1694057640571,0.002,25821.0,25820.0,3.21025329]
[1694057640770,0.002,25821.0,25820.0,3.36529029]
[1694057642179,0.002,25821.0,25820.0,3.34529029]
[1694057642389,0.002,25821.0,25820.0,3.42529029]
[1694057642803,0.002,25821.0,25820.0,3.80529029]
[1694057644723,0.002,25821.0,25820.0,4.21309029]
[1694057645926,0.001,25821.0,25820.0,4.20309029]
[1694057646131,0.003,25821.0,25820.0,4.22809029]
[1694057646393,0.002,25821.0,25820.0,4.21909029]
[1694057646600,0.004,25821.0,25820.0,4.24309029]
[1694057658165,0.004,25821.0,25820.0,4.24349029]
[1694057669850,0.004,25821.0,25820.0,5.36032878]
[1694057671483,0.004,25821.0,25820.0,5.36042878]
[1694057674358,0.004,25821.0,25820.0,4.95262878]
[1694057674591,0.004,25821.0,25820.0,3.83579029]
[1694057678026,0.004,25821.0,25820.0,3.42914502]
[1694057678288,0.004,25821.0,25820.0,3.27410802]
[1694057678727,0.08882907,25821.0,25820.0,3.27410802]
[1694057682008,0.004,25821.0,25820.0,3.27410802]
[1694057683550,0.004,25821.0,25820.0,3.21410802]
[1694057684692,0.004,25821.0,25820.0,3.60075329]
[1694057684901,0.004,25821.0,25820.0,4.71755024]
[1694057686408,0.004,25821.0,25820.0,4.69755024]
[1694057686648,0.004,25821.0,25820.0,4.71755024]
[1694057687173,0.004,25821.0,25820.0,4.69755024]
[1694057692762,0.004,25821.0,25820.0,4.79755024]
[1694057696221,0.09297085,25824.0,25823.0,0.08]
[1694057696383,0.09297085,25824.0,25823.0,4.45966027]
[1694057696585,0.09297085,25824.0,25823.0,4.4610559]
[1694057697520,0.09397085,25824.0,25823.0,4.4680559]
[1694057697720,0.09497085,25824.0,25823.0,4.4760559]
[1694057700065,0.08997085,25824.0,25823.0,4.4760559]
[1694057700869,0.002,25824.0,25823.0,4.4760559]
[1694057706830,0.002,25824.0,25823.0,3.31490763]
[1694057706969,0.14149309,25824.0,25823.0,3.31490763]
[1694057707622,0.36055439,25824.0,25823.0,3.31490763]
[1694057708033,0.14149309,25824.0,25823.0,3.31490763]
[1694057708247,0.002,25824.0,25823.0,3.31490763]
[1694057710237,0.09497799,25824.0,25823.0,3.31490763]
[1694057712881,0.23447108,25824.0,25823.0,3.31490763]
[1694057713101,0.09497799,25824.0,25823.0,3.31490763]
[1694057713341,0.23447108,25824.0,25823.0,3.31490763]
[1694057716063,0.09497799,25824.0,25823.0,3.31490763]
[1694057716650,0.23447108,25824.0,25823.0,3.31490763]
[1694057720363,0.09497799,25824.0,25823.0,3.31490763]
[1694057723961,0.09497799,25824.0,25823.0,3.31496763]
[1694057724562,0.23447108,25824.0,25823.0,3.31496763]
[1694057726025,0.23447108,25824.0,25823.0,3.31502763]
[1694057726622,0.23447108,25824.0,25823.0,3.31508763]
[1694057727795,0.23447108,25824.0,25823.0,3.7017329]
[1694057728033,0.002,25824.0,25823.0,4.4762359]
[1694057730362,0.09497799,25824.0,25823.0,4.4762359]
[1694057730611,0.002,25824.0,25823.0,4.4762359]
[1694057732967,0.0374013,25824.0,25823.0,4.4762359]
[1694057733207,0.002,25824.0,25823.0,4.4762359]
[1694057735428,0.0374013,25824.0,25823.0,4.4762359]
[1694057741685,0.0374013,25824.0,25823.0,3.7017329]
[1694057742609,0.0374013,25824.0,25823.0,3.31508763]
[1694057743279,0.0374013,25824.0,25823.0,3.7017329]
[1694057787383,0.002,25824.0,25823.0,3.7017329]
[1694057787586,0.04066316,25824.0,25823.0,3.7017329]
[1694057799111,0.04066316,25824.0,25823.0,3.7015529]
[1694057813285,0.29417038,25824.0,25823.0,3.7015529]
[1694057817682,0.04066316,25824.0,25823.0,3.7015529]
[1694057818105,0.0198,25826.0,25825.0,0.08]
[1694057818312,0.11283317,25826.0,25825.0,0.58714527]
[1694057818520,0.11283317,25826.0,25825.0,4.45936027]
[1694057818727,0.11283317,25826.0,25825.0,4.46075826]
[1694057819401,0.0298,25826.0,25825.0,4.46175826]
[1694057819805,0.0378,25826.0,25825.0,4.46275826]
[1694057825755,0.0378,25826.0,25825.0,4.82275826]
[1694057825756,0.08476617,25826.0,25825.0,4.82275826]
[1694057826621,0.06676617,25826.0,25825.0,4.82075826]
[1694057827106,0.06676617,25826.0,25825.0,4.82875826]
[1694057827333,0.06676617,25826.0,25825.0,4.80875826]
[1694057828566,0.06776617,25826.0,25825.0,4.81575826]
[1694057829284,0.06776617,25826.0,25825.0,5.00935826]
[1694057829798,0.06776617,25826.0,25825.0,4.81575826]
[1694057830983,0.06776617,25826.0,25825.0,4.79575826]
[1694057847192,0.04796617,25826.0,25825.0,4.79575826]
[1694057856577,0.29119607,25826.0,25825.0,4.79575826]
[1694057857205,0.29119607,25826.0,25825.0,3.31466999]
[1694057857440,0.29119607,25826.0,25825.0,1.76578399]
[1694057858070,0.29119607,25826.0,25825.0,2.54022699]
[1694057859115,0.3865206,25826.0,25825.0,2.54022699]
[1694057860561,0.29119607,25826.0,25825.0,2.54022699]
[1694057862833,0.04796617,25826.0,25825.0,2.46022699]
[1694057863047,0.14099934,25826.0,25825.0,1.68578399]
[1694057863297,0.14099934,25826.0,25825.0,2.46022699]
[1694057863751,0.23525918,25826.0,25825.0,2.46022699]
[1694057864467,0.35488001,25826.0,25825.0,2.46022699]
[1694057865418,0.26184684,25826.0,25825.0,2.46022699]
[1694057865647,0.35478174,25826.0,25825.0,2.46022699]
[1694057866227,0.26184684,25826.0,25825.0,2.46022699]
[1694057892554,0.26184684,25826.0,25825.0,2.70222699]
[1694057897862,0.04796617,25826.0,25825.0,2.70222699]
[1694057898455,0.14090107,25826.0,25825.0,2.70222699]
[1694057902481,0.28030342,25826.0,25825.0,2.70222699]
[1694057903428,0.18736852,25826.0,25825.0,2.70222699]
[1694057911184,0.18736852,25826.0,25825.0,3.08887226]
[1694057911185,0.04796617,25826.0,25825.0,3.08887226]
[1694057911410,0.04796617,25826.0,25825.0,3.16887226]
[1694057917995,0.04780377,25826.0,25825.0,3.16887226]
[1694057956344,0.04780377,25826.0,25825.0,3.36247226]
[1694057959944,0.04780377,25826.0,25825.0,3.42961226]
[1694057960168,0.04780377,25826.0,25825.0,3.42913226]
[1694057960384,0.04780377,25826.0,25825.0,3.42973226]
[1694057960607,0.04780377,25826.0,25825.0,3.42943226]
[1694057960811,0.04780377,25826.0,25825.0,3.42883226]
[1694057961020,0.04780377,25826.0,25825.0,3.42877226]
[1694057961232,0.04780377,25826.0,25825.0,3.36247226]
[1694057961534,0.04780377,25826.0,25825.0,3.42793226]
[1694057961769,0.04780377,25826.0,25825.0,3.42787226]
[1694057961997,0.04780377,25826.0,25825.0,3.42853226]
[1694057962201,0.04780377,25826.0,25825.0,3.42859226]
[1694057962406,0.04780377,25826.0,25825.0,3.42841226]
[1694057962614,0.04780377,25826.0,25825.0,3.42835226]
[1694057962821,0.04780377,25826.0,25825.0,3.42829226]
[1694057963226,0.04780377,25826.0,25825.0,3.42823226]
[1694057963883,0.04780377,25826.0,25825.0,3.42799226]
[1694057964117,0.04780377,25826.0,25825.0,3.42841226]
[1694057964332,0.04780377,25826.0,25825.0,3.42835226]
[1694057964562,0.04780377,25826.0,25825.0,3.42799226]
[1694057964798,0.04780377,25826.0,25825.0,3.42853226]
[1694057965038,0.04780377,25826.0,25825.0,3.42781226]
[1694057965343,0.04780377,25826.0,25825.0,3.36247226]
[1694057967348,0.04780377,25826.0,25825.0,3.16887226]
[1694057973265,0.04780377,25826.0,25825.0,3.28937226]
[1694057978231,0.04780377,25826.0,25825.0,3.48297226]
[1694057979306,0.04780377,25826.0,25825.0,3.54873226]
[1694057979721,0.04780377,25826.0,25825.0,3.54897226]
[1694057979921,0.04780377,25826.0,25825.0,3.48297226]
[1694057980155,0.04780377,25826.0,25825.0,3.54861226]
[1694057980580,0.04780377,25826.0,25825.0,3.54843226]
[1694057980805,0.04780377,25826.0,25825.0,3.60921226]
[1694057980982,0.04780377,25826.0,25825.0,3.90939226]
[1694057981227,0.04780377,25826.0,25825.0,3.90951226]
[1694057981438,0.04780377,25826.0,25825.0,3.90963226]
[1694057981648,0.04780377,25826.0,25825.0,3.91575226]
[1694057981904,0.04780377,25826.0,25825.0,3.91557226]
[1694057982111,0.04780377,25826.0,25825.0,3.91551226]
[1694057982314,0.04780377,25826.0,25825.0,3.91545226]
[1694057982722,0.04780377,25826.0,25825.0,3.91497226]
[1694057982896,0.04780377,25826.0,25825.0,3.91485226]
[1694057983119,0.04780377,25826.0,25825.0,3.91575226]
[1694057983316,0.04780377,25826.0,25825.0,3.91749226]
[1694057983523,0.04780377,25826.0,25825.0,3.91743226]
[1694057983729,0.04780377,25826.0,25825.0,3.91767226]
[1694057983908,0.04680377,25826.0,25825.0,3.91091226]
[1694057984109,0.04680377,25826.0,25825.0,3.91643226]
[1694057984315,0.04680377,25826.0,25825.0,3.91649226]
[1694057984534,0.04680377,25826.0,25825.0,3.91049226]
[1694057984706,0.04680377,25826.0,25825.0,3.90243226]
[1694057984887,0.04780377,25826.0,25825.0,3.92449226]
[1694057985298,0.04780377,25826.0,25825.0,3.92079226]
[1694057985499,0.04880377,25826.0,25825.0,3.93781226]
[1694057985718,0.04880377,25826.0,25825.0,3.93841226]
[1694057985913,0.04880377,25826.0,25825.0,3.93799226]
[1694057986125,0.04880377,25826.0,25825.0,3.93787226]
[1694057986323,0.04880377,25826.0,25825.0,3.93775226]
[1694057986555,0.04880377,25826.0,25825.0,3.93715226]
[1694057986764,0.04880377,25826.0,25825.0,3.93523226]
[1694057987035,0.04880377,25826.0,25825.0,3.93505226]
[1694057987190,0.04880377,25826.0,25825.0,3.93487226]
[1694057987655,0.04880377,25826.0,25825.0,3.93493226]
[1694057987839,0.04880377,25826.0,25825.0,3.93469226]
[1694057988041,0.04880377,25826.0,25825.0,3.93457226]
[1694057988257,0.04880377,25826.0,25825.0,3.93517226]
[1694057988463,0.0198,25827.0,25826.0,0.1]
[1694057988668,0.0198,25827.0,25826.0,3.35088427]
[1694057988875,0.0198,25827.0,25826.0,3.42414427]
[1694057989085,0.0198,25827.0,25826.0,3.42348427]
[1694057989297,0.0198,25827.0,25826.0,3.42366427]
[1694057989541,0.0198,25827.0,25826.0,3.42318427]
[1694057989720,0.0198,25827.0,25826.0,3.43133331]
[1694057990132,0.0198,25827.0,25826.0,3.43727331]
[1694057990338,0.0198,25827.0,25826.0,3.43691331]
[1694057990512,0.0198,25827.0,25826.0,3.43685331]
[1694057990727,0.0198,25827.0,25826.0,3.43679331]
[1694057990959,0.0198,25827.0,25826.0,3.43691331]
[1694057991354,0.0198,25827.0,25826.0,3.43703331]
[1694057991614,0.0198,25827.0,25826.0,3.43661331]
[1694057991825,0.0198,25827.0,25826.0,3.43739331]
[1694057992060,0.0198,25827.0,25826.0,3.44165331]
[1694057992261,0.0198,25827.0,25826.0,3.44153331]
[1694057992465,0.0198,25827.0,25826.0,3.44135331]
[1694057992672,0.0198,25827.0,25826.0,3.44129331]
[1694057992873,0.0198,25827.0,25826.0,3.43985331]
[1694057993053,0.0198,25827.0,25826.0,3.43979331]
[1694057993287,0.0198,25827.0,25826.0,3.43931331]
[1694057993489,0.0198,25827.0,25826.0,3.43925331]
[1694057993698,0.1622,25829.0,25826.0,3.43925331]
[1694057993915,0.1622,25829.0,25828.0,0.1205]
[1694057994126,0.1622,25829.0,25828.0,4.45891027]
[1694057994331,1.2246,25830.0,25828.0,4.45891027]
[1694057994524,1.2246,25830.0,25829.0,0.58714527]
[1694057994724,1.2246,25830.0,25829.0,2.91011427]
[1694057994935,1.001,25830.0,25829.0,2.9114415]
[1694057995337,1.04636544,25830.0,25829.0,2.9114415]
[1694057995746,1.05536544,25830.0,25829.0,2.9124415]
[1694057996340,1.07536544,25830.0,25829.0,2.9144415]
[1694057999192,1.1684115,25830.0,25829.0,2.9144415]
[1694058000224,1.07536544,25830.0,25829.0,2.9144415]
[1694058001682,1.06636544,25830.0,25829.0,2.9134415]
[1694058001893,1.07436544,25830.0,25829.0,2.9144415]
[1694058002351,1.05436544,25830.0,25829.0,2.9124415]
[1694058002562,1.06536544,25830.0,25829.0,2.9134415]
[1694058005012,0.08536644,25830.0,25829.0,4.207084]
[1694058005267,0.09304606,25837.0,25836.0,0.14]
[1694058005490,0.0198,25840.0,25839.0,0.5478]
[1694058005704,0.0198,25840.0,25839.0,2.93714938]
[1694058005922,0.0198,25841.0,25840.0,0.4678]
[1694058006128,0.0198,25841.0,25840.0,1.33010338]
[1694058006344,0.0198,25844.0,25843.0,0.08]
[1694058006568,0.2366496,25844.0,25843.0,3.68275727]
[1694058006775,0.0198,25844.0,25843.0,3.68275727]
[1694058007187,0.05523374,25844.0,25843.0,3.68275727]
[1694058007413,0.05523374,25844.0,25843.0,2.522209]
[1694058007635,0.24830797,25844.0,25843.0,1.748306]
[1694058007853,0.24830797,25844.0,25843.0,2.522209]
[1694058008476,0.24830797,25844.0,25843.0,2.539209]
[1694058008894,0.25830797,25844.0,25843.0,0.018]
[1694058009312,0.24830797,25844.0,25843.0,0.017]
[1694058009740,0.24830797,25844.0,25843.0,0.0342521]
[1694058009741,0.24930797,25844.0,25843.0,0.0342521]
[1694058009947,0.53307057,25844.0,25843.0,0.0342521]
[1694058010164,0.53307057,25844.0,25843.0,0.0182521]
[1694058010165,0.53207057,25844.0,25843.0,0.0182521]
[1694058010387,0.53207057,25844.0,25843.0,0.0252521]
[1694058010594,0.24830797,25844.0,25843.0,0.7991551]
[1694058011220,0.24830797,25844.0,25843.0,0.7821551]
[1694058011658,0.24830797,25844.0,25843.0,0.7901551]
[1694058011882,0.24830797,25844.0,25843.0,0.7821551]
[1694058012084,0.24830797,25844.0,25843.0,0.7901551]
[1694058012324,0.37720157,25844.0,25843.0,0.7901551]
[1694058012995,0.37526387,25844.0,25843.0,0.0162521]
[1694058013220,0.37526387,25844.0,25843.0,0.1367521]
[1694058014686,0.18218964,25844.0,25843.0,0.0162521]
[1694058014897,0.43079493,25844.0,25843.0,0.0162521]
[1694058015311,0.18218964,25844.0,25843.0,0.0162521]
[1694058015512,0.26069375,25844.0,25843.0,0.1367521]
[1694058015717,0.05329604,25844.0,25843.0,0.1297521]
[1694058015916,0.05329604,25844.0,25843.0,0.1217521]
[1694058016157,0.06529604,25844.0,25843.0,1.6705581]
[1694058016364,0.06729604,25844.0,25843.0,1.6715581]
[1694058016986,0.28545336,25844.0,25843.0,1.6715581]
[1694058017659,0.28545336,25844.0,25843.0,2.4454611]
[1694058017660,0.06729604,25844.0,25843.0,2.4454611]
[1694058020165,0.28394286,25844.0,25843.0,2.4454611]
[1694058021288,0.06729604,25844.0,25843.0,2.4454611]
[1694058021707,0.28188916,25844.0,25843.0,2.4454611]
[1694058028116,0.06729604,25844.0,25843.0,2.4454611]
[1694058031239,0.06729604,25844.0,25843.0,3.56143123]
[1694058031911,0.06729604,25844.0,25843.0,3.56043123]
[1694058031912,0.05529604,25844.0,25843.0,3.56043123]
[1694058032126,0.06529604,25844.0,25843.0,3.56143123]
[1694058032309,0.06329604,25844.0,25843.0,3.56043123]
[1694058032462,0.06329604,25844.0,25843.0,3.56843123]
[1694058033500,0.06329604,25844.0,25843.0,3.56743123]
[1694058033701,0.05329604,25844.0,25843.0,3.56743123]
[1694058033908,0.05329604,25844.0,25843.0,3.57443123]
[1694058035746,0.27234518,25844.0,25843.0,3.57443123]
[1694058043375,0.05135854,25844.0,25843.0,3.57443123]
[1694058048837,0.24770664,25844.0,25843.0,3.57443123]
[1694058049217,0.3137773,25844.0,25843.0,3.57443123]
[1694058049449,0.24770664,25844.0,25843.0,3.57443123]
[1694058051489,0.24770664,25844.0,25843.0,2.4584611]
[1694058053374,0.05135854,25844.0,25843.0,0.0162521]
[1694058053583,0.880973,25844.0,25843.0,0.0162521]
[1694058053791,1.10279649,25844.0,25843.0,0.0162521]
[1694058054005,1.59910654,25844.0,25843.0,0.0162521]
[1694058054218,2.92312581,25844.0,25843.0,0.0162521]
[1694058054436,3.16900762,25844.0,25843.0,0.0162521]
[1694058054863,3.16900762,25844.0,25843.0,0.015]
[1694058055078,3.55565289,25844.0,25843.0,0.008]
[1694058055512,3.78698784,25844.0,25843.0,0.008]
[1694058055716,3.55565289,25844.0,25843.0,0.008]
[1694058055938,3.55565289,25844.0,25843.0,0.00906758]
[1694058056528,3.79690976,25844.0,25843.0,0.01006758]
[1694058056762,3.79690976,25844.0,25843.0,0.00206758]
[1694058056969,3.78690976,25844.0,25843.0,0.00106758]
[1694058057175,3.78890976,25844.0,25843.0,0.00506758]
[1694058057378,3.95480976,25844.0,25843.0,0.00306758]
[1694058057583,3.61210603,25844.0,25843.0,0.00306758]
[1694058058206,3.61410603,25844.0,25843.0,0.00506758]
[1694058058644,3.38277108,25844.0,25843.0,0.00506758]
[1694058063534,3.66157578,25844.0,25843.0,0.00506758]
[1694058064007,3.62614204,25844.0,25843.0,0.00506758]
[1694058069418,4.10618204,25844.0,25843.0,0.00506758]
[1694058069621,4.40546204,25844.0,25843.0,0.00506758]
[1694058069800,4.12587734,25844.0,25843.0,0.004]
[1694058070004,4.12779734,25844.0,25843.0,0.004]
[1694058070211,4.12989734,25844.0,25843.0,0.004]
[1694058070525,4.12779734,25844.0,25843.0,0.004]
[1694058070726,4.12743734,25844.0,25843.0,0.004]
[1694058070929,4.12725734,25844.0,25843.0,0.004]
[1694058071140,4.12761734,25844.0,25843.0,0.004]
[1694058071325,4.13463734,25844.0,25843.0,0.004]
[1694058071528,4.12365734,25844.0,25843.0,0.004]
[1694058071735,4.13271734,25844.0,25843.0,0.004]
[1694058071943,4.11835734,25844.0,25843.0,0.002]
[1694058072134,4.11829734,25844.0,25843.0,0.002]
[1694058072456,4.13959734,25844.0,25843.0,0.004]
[1694058072687,0.02,25841.0,25838.0,0.00098665]
[1694058072875,0.35247293,25839.0,25838.0,0.00098665]
[1694058073113,0.35247293,25839.0,25836.0,1.608192]
[1694058073114,1.4800404,25839.0,25836.0,1.608192]
[1694058073322,2.29085964,25839.0,25836.0,1.608192]
[1694058073540,2.29085964,25839.0,25836.0,0.06]
[1694058073755,0.09278917,25838.0,25836.0,0.06]
[1694058073975,1.64092317,25838.0,25837.0,0.00101804]
[1694058074199,2.80164344,25838.0,25837.0,0.00101804]
[1694058074639,2.70885427,25838.0,25837.0,0.00101804]
[1694058074861,2.9009316,25838.0,25836.0,0.012]
[1694058075070,2.70885427,25838.0,25836.0,0.012]
[1694058075896,2.70885427,25838.0,25837.0,0.00101806]
[1694058076102,2.71085427,25838.0,25837.0,0.00101806]
[1694058076311,2.71285427,25838.0,25837.0,0.02201806]
[1694058076522,2.71085427,25838.0,25837.0,0.00101806]
[1694058076736,2.71285427,25838.0,25837.0,0.00101806]
[1694058076943,2.71085427,25838.0,25837.0,0.00101806]
[1694058077154,2.70885427,25838.0,25837.0,0.00101806]
[1694058077360,2.71085427,25838.0,25837.0,0.02201806]
[1694058078189,3.09949954,25838.0,25837.0,0.04201806]
[1694058078415,3.21999954,25838.0,25837.0,0.04201806]
[1694058078602,3.21999954,25838.0,25837.0,0.02201806]
[1694058078603,3.26099954,25838.0,25837.0,0.02201806]
[1694058078813,3.26099954,25838.0,25837.0,0.021]
[1694058079017,3.25899954,25838.0,25837.0,0.003]
[1694058079230,3.25899954,25838.0,25837.0,0.007]
[1694058079435,3.25899954,25838.0,25833.0,1.60959472]
[1694058079665,0.88140161,25837.0,25833.0,0.83539372]
[1694058079856,1.74801246,25836.0,25834.0,0.00101987]
[1694058080451,2.52213146,25836.0,25834.0,0.00101987]
[1694058080646,2.90877673,25836.0,25834.0,0.00101987]
[1694058082080,2.91077673,25836.0,25834.0,0.02101987]
[1694058082274,0.38664527,25835.0,25834.0,0.04201987]
[1694058082477,2.12828111,25835.0,25834.0,0.04201987]
[1694058083086,2.12828111,25835.0,25834.0,0.00101987]
[1694058083499,2.13028111,25835.0,25834.0,0.02601987]
[1694058083703,2.90442411,25835.0,25834.0,0.02601987]
[1694058084437,2.90642411,25835.0,25834.0,0.05001987]
[1694058086133,2.51892638,25835.0,25834.0,0.05001987]
[1694058087380,2.53992638,25835.0,25834.0,0.02601987]
[1694058087607,2.53992638,25835.0,25834.0,0.02901987]
[1694058088063,2.53992638,25835.0,25834.0,0.02601987]
[1694058088265,2.53792638,25835.0,25834.0,0.00101987]
[1694058088486,2.53792638,25835.0,25834.0,0.00801987]
[1694058090303,1.76378338,25835.0,25834.0,0.00801987]
[1694058101454,2.48507654,25835.0,25834.0,0.00801987]
[1694058102069,3.25921954,25835.0,25834.0,0.00801987]
[1694058102479,3.35200871,25835.0,25834.0,0.00801987]
[1694058102686,3.25921954,25835.0,25834.0,0.00801987]